bitfinex/quotes_BTCUSD_20250522
["timestamp","ask_amount","ask_price","bid_price","bid_amount"]
[1747939729240,0.08129222,111720.0,111710.0,2.47485875]
[1747939729442,0.26926165,111720.0,111710.0,2.47485891]
[1747939730880,0.27821235,111720.0,111710.0,2.47485891]
[1747939731908,0.08129174,111720.0,111710.0,2.47485891]
[1747939732087,0.08129174,111720.0,111710.0,2.47485843]
[1747939732292,0.09024244,111720.0,111710.0,2.46590725]
[1747939732490,0.09024244,111720.0,111710.0,2.46590693]
[1747939732725,0.0991933,111720.0,111710.0,2.46590693]
[1747939733919,0.09024244,111720.0,111710.0,2.47485811]
[1747939734802,0.09024244,111720.0,111710.0,2.46865811]
[1747939735254,0.08129166,111720.0,111710.0,2.46865811]
[1747939735451,0.0723412,111720.0,111710.0,2.46865811]
[1747939735662,0.17948831,111740.0,111730.0,0.34]
[1747939735858,0.17948831,111740.0,111730.0,5.776931]
[1747939737023,0.17948831,111740.0,111730.0,5.79111898]
[1747939737259,0.17948831,111740.0,111730.0,5.97012193]
[1747939737480,0.18148831,111740.0,111730.0,5.97012193]
[1747939737691,0.19938675,111740.0,111730.0,5.98802205]
[1747939737923,0.19938675,111740.0,111730.0,5.97907191]
[1747939738124,0.19938675,111740.0,111730.0,5.98802181]
[1747939738329,0.19938675,111740.0,111730.0,5.97907191]
[1747939738694,0.0925418,111740.0,111730.0,5.99697147]
[1747939738905,0.28047807,111740.0,111730.0,6.00592113]
[1747939739092,0.24957807,111740.0,111730.0,5.98802173]
[1747939739295,0.24957807,111740.0,111730.0,6.10105788]
[1747939739640,0.24757807,111740.0,111730.0,6.10105788]
[1747939740015,0.01034328,111740.0,111730.0,6.26000746]
[1747939740225,0.02824108,111740.0,111730.0,6.26000746]
[1747939740582,0.02029206,111740.0,111730.0,6.26000746]
[1747939740782,0.02029206,111740.0,111730.0,6.24581948]
[1747939740783,0.02924108,111740.0,111730.0,6.24581948]
[1747939740947,0.03819026,111740.0,111730.0,6.24581948]
[1747939741150,0.02924108,111740.0,111730.0,6.24581948]
[1747939741371,0.25149027,111750.0,111740.0,0.22037484]
[1747939741372,0.0089479,111750.0,111740.0,0.22037484]
[1747939741572,0.01789604,111750.0,111740.0,5.13489156]
[1747939741829,0.02684434,111750.0,111740.0,5.14384034]
[1747939742120,0.02684434,111750.0,111740.0,5.29384034]
[1747939742356,0.03579272,111750.0,111740.0,5.29384034]
[1747939742755,0.22371273,111750.0,111740.0,5.30799883]
[1747939743165,0.21476459,111750.0,111740.0,5.29904997]
[1747939743378,0.20681629,111750.0,111740.0,5.29010111]
[1747939743532,0.26036791,111750.0,111740.0,5.29010111]
[1747939743725,0.25141945,111750.0,111740.0,5.09321582]
[1747939744632,0.24247091,111750.0,111740.0,5.09321582]
[1747939744844,0.31462424,111750.0,111740.0,0.74403841]
[1747939745049,0.31462424,111750.0,111740.0,1.35219841]
[1747939745263,0.4041698,111750.0,111740.0,0.40031841]
[1747939745470,0.4041698,111750.0,111740.0,1.01219841]
[1747939746104,0.4041698,111750.0,111740.0,0.74403841]
[1747939746309,0.4041698,111750.0,111740.0,0.99804]
[1747939746516,0.4041698,111750.0,111740.0,0.72988]
[1747939746722,0.4041698,111750.0,111740.0,0.99804]
[1747939748096,0.33201647,111750.0,111740.0,0.99804]
[1747939750888,0.33201647,111750.0,111740.0,0.99808]
[1747939751910,0.33201647,111750.0,111740.0,0.38616]
[1747939752127,0.33201647,111750.0,111740.0,0.99808]
[1747939752255,0.33201647,111750.0,111740.0,0.38616]
[1747939752618,0.33201647,111750.0,111740.0,0.99808]
[1747939759621,0.33201647,111750.0,111700.0,0.66905044]
[1747939759622,0.19693784,111710.0,111700.0,0.16555832]
[1747939759828,0.21828658,111710.0,111700.0,5.33438022]
[1747939760251,0.18798658,111710.0,111700.0,5.48438022]
[1747939760456,0.18798658,111710.0,111700.0,5.56438022]
[1747939760672,0.18798658,111710.0,111700.0,5.84153277]
[1747939760889,0.23961897,111720.0,111700.0,5.85048516]
[1747939761097,0.19693816,111710.0,111700.0,1.05721424]
[1747939761315,0.19793816,111710.0,111700.0,5.85548524]
[1747939761521,0.19793816,111710.0,111700.0,6.17758022]
[1747939761928,0.19793816,111710.0,111700.0,6.0120219]
[1747939762145,0.19793816,111710.0,111700.0,6.19107292]
[1747939762545,0.19793816,111710.0,111700.0,6.19607292]
[1747939763734,0.19793816,111710.0,111700.0,6.20502547]
[1747939764157,0.19793816,111710.0,111700.0,6.19607292]
[1747939765003,0.19793816,111710.0,111700.0,6.20506539]
[1747939765401,0.0278537,111710.0,111700.0,6.27521762]
[1747939765609,0.0278537,111710.0,111700.0,6.25204102]
[1747939765827,0.03680528,111710.0,111700.0,6.13407879]
[1747939766034,0.03680528,111710.0,111700.0,6.12512672]
[1747939766248,0.21584028,111710.0,111700.0,6.11617449]
[1747939766462,0.21584101,111710.0,111700.0,6.05497449]
[1747939766661,0.21584101,111710.0,111700.0,6.17497449]
[1747939767751,0.02785418,111710.0,111700.0,6.1839268]
[1747939767959,0.02785418,111710.0,111700.0,6.19287895]
[1747939768207,0.02785418,111710.0,111700.0,6.57911895]
[1747939769009,0.21584084,111710.0,111700.0,6.56121449]
[1747939769258,0.20688958,111710.0,111700.0,6.55226202]
[1747939769479,0.02785458,111710.0,111700.0,6.56121457]
[1747939769681,0.20688958,111710.0,111700.0,6.57016704]
[1747939770006,0.20688958,111710.0,111700.0,6.55226202]
[1747939770885,0.20688958,111710.0,111700.0,6.56121457]
[1747939771085,0.20688958,111710.0,111700.0,6.57016704]
[1747939774025,0.19793816,111710.0,111700.0,6.57016704]
[1747939774414,0.19793816,111710.0,111700.0,6.56121457]
[1747939775135,0.19793816,111710.0,111700.0,6.55226202]
[1747939775344,0.19793816,111710.0,111700.0,6.56121449]
[1747939775920,0.19793816,111710.0,111700.0,6.37428849]
[1747939776943,0.19793816,111710.0,111700.0,6.37428857]
[1747939777167,0.18898666,111710.0,111700.0,6.09709602]
[1747939777379,0.25148666,111710.0,111700.0,6.24533602]
[1747939777561,0.25148666,111710.0,111700.0,6.25428857]
[1747939777760,0.25148666,111710.0,111700.0,6.38324104]
[1747939778009,0.01890228,111710.0,111700.0,6.50523167]
[1747939778131,0.01890228,111710.0,111700.0,6.41573167]
[1747939778670,0.03680536,111710.0,111700.0,6.53573175]
[1747939779093,0.03680544,111710.0,111700.0,6.54468374]
[1747939779852,0.02785378,111710.0,111700.0,6.54468374]
[1747939780016,0.00995102,111710.0,111700.0,6.57488374]
[1747939780223,0.0278537,111710.0,111700.0,6.57488374]
[1747939780436,0.02785362,111710.0,111700.0,6.57488374]
[1747939780607,0.01890228,111710.0,111700.0,6.57488374]
[1747939780811,0.0189022,111710.0,111700.0,6.99178374]
[1747939781191,0.02785354,111710.0,111700.0,6.99153206]
[1747939781798,0.04575662,111710.0,111700.0,6.95238007]
[1747939782004,0.04575727,111710.0,111700.0,6.912928]
[1747939782213,0.03680609,111710.0,111700.0,6.912928]
[1747939782331,0.036806,111710.0,111700.0,6.92188015]
[1747939782534,0.01890276,111710.0,111700.0,6.93083222]
[1747939782737,0.02785442,111710.0,111700.0,6.93083222]
[1747939782971,0.02785442,111710.0,111700.0,6.912928]
[1747939783310,0.02785442,111710.0,111700.0,6.58213183]
[1747939783495,0.02785434,111710.0,111700.0,6.5910839]
[1747939783703,0.036806,111710.0,111700.0,6.59554102]
[1747939783911,0.02785434,111710.0,111700.0,6.59554102]
[1747939784539,0.02785434,111710.0,111700.0,6.60449309]
[1747939784694,0.02785434,111710.0,111700.0,6.59554102]
[1747939785073,0.03680609,111710.0,111700.0,6.58658895]
[1747939785261,0.09035434,111710.0,111700.0,6.58658895]
[1747939785462,0.09930609,111710.0,111700.0,6.59554118]
[1747939785856,0.27834109,111710.0,111700.0,6.30044417]
[1747939786062,0.27834109,111710.0,111700.0,6.56868417]
[1747939786063,0.26938975,111710.0,111700.0,6.56868417]
[1747939786218,0.26938975,111710.0,111700.0,6.57763664]
[1747939786608,0.26938975,111710.0,111700.0,5.97458895]
[1747939786826,0.081403,111710.0,111700.0,6.60341325]
[1747939787048,0.09035475,111710.0,111700.0,6.60341333]
[1747939787280,0.26938975,111710.0,111700.0,6.59446118]
[1747939789426,0.26938975,111710.0,111700.0,6.58550895]
[1747939789886,0.26043833,111710.0,111700.0,6.58550895]
[1747939790466,0.26043833,111710.0,111700.0,6.57655664]
[1747939790669,0.25148675,111710.0,111700.0,5.95668417]
[1747939790887,0.242535,111710.0,111700.0,6.2596006]
[1747939791091,0.242535,111710.0,111700.0,5.88727419]
[1747939791295,0.2846904,111710.0,111700.0,1.40574919]
[1747939791509,0.242535,111710.0,111700.0,1.33496919]
[1747939792456,0.241535,111710.0,111700.0,1.32996919]
[1747939792893,0.242535,111710.0,111700.0,0.68184919]
[1747939793059,0.242535,111710.0,111700.0,1.00316]
[1747939793278,0.67208056,111710.0,111700.0,0.73492]
[1747939793521,0.67208056,111710.0,111700.0,0.39224]
[1747939793731,0.67208056,111710.0,111700.0,1.0032]
[1747939794246,0.67208056,111710.0,111700.0,0.39228]
[1747939794438,0.67208056,111710.0,111700.0,1.0032]
[1747939794905,0.67108056,111710.0,111700.0,1.0012]
[1747939795093,0.67208056,111710.0,111700.0,1.0032]
[1747939795332,0.67208056,111710.0,111700.0,0.9992]
[1747939795498,0.67108056,111710.0,111700.0,0.73196]
[1747939795706,0.67108056,111710.0,111700.0,1.0002]
[1747939795958,0.67108056,111710.0,111700.0,1.0012]
[1747939796136,0.33108056,111710.0,111700.0,0.9982]
[1747939796339,0.33108056,111710.0,111700.0,0.9992]
[1747939799678,0.33108056,111710.0,111700.0,0.73096]
[1747939800090,0.33108056,111710.0,111700.0,0.38828]
[1747939800287,0.33108056,111710.0,111700.0,0.99912]
[1747939801998,0.33108056,111710.0,111700.0,0.99812]
[1747939802197,0.33108056,111710.0,111700.0,0.99712]
[1747939802431,0.33308056,111710.0,111700.0,0.99812]
[1747939802639,0.33308056,111710.0,111700.0,0.72984]
[1747939802640,0.96130404,111710.0,111700.0,0.72984]
[1747939802844,0.96130404,111710.0,111700.0,0.99812]
[1747939803261,0.18800341,111700.0,111690.0,4e-05]
[1747939803456,0.34224897,111700.0,111690.0,0.61092]
[1747939804768,0.34224897,111700.0,111690.0,0.34264]
[1747939805119,0.34224897,111700.0,111690.0,0.61092]
[1747939805755,0.34324897,111700.0,111690.0,0.61292]
[1747939805972,0.34224897,111700.0,111690.0,0.61192]
[1747939806186,0.34224897,111700.0,111690.0,0.61092]
[1747939806412,0.34524897,111700.0,111690.0,0.61192]
[1747939806581,0.34724897,111700.0,111690.0,0.61192]
[1747939808690,0.25770341,111700.0,111690.0,0.61192]
[1747939811380,0.19300341,111700.0,111690.0,2.06402]
[1747939811573,0.19300341,111700.0,111690.0,1.78912]
[1747939811809,0.19300341,111700.0,111690.0,0.61192]
[1747939812017,0.25610341,111700.0,111690.0,1.96212]
[1747939812440,0.25610341,111700.0,111690.0,2.48118706]
[1747939812441,0.19100325,111700.0,111690.0,2.48118706]
[1747939812647,0.19995572,111700.0,111690.0,2.51278706]
[1747939812856,0.19995572,111700.0,111690.0,2.33372]
[1747939813055,0.19695572,111700.0,111690.0,2.30112]
[1747939813582,0.19895572,111700.0,111690.0,2.30212]
[1747939814225,0.19895572,111700.0,111690.0,2.48118706]
[1747939814423,0.19895572,111700.0,111690.0,2.30212]
[1747939815021,0.19895572,111700.0,111690.0,2.49014041]
[1747939815222,0.19895572,111700.0,111690.0,2.48118706]
[1747939815430,0.19895572,111700.0,111690.0,2.30212]
[1747939816704,0.19895572,111700.0,111690.0,2.49014033]
[1747939816919,0.19895572,111700.0,111690.0,2.49014025]
[1747939817124,0.002,111700.0,111690.0,2.67463248]
[1747939817382,0.01095183,111700.0,111690.0,2.67463248]
[1747939817551,0.02885621,111700.0,111690.0,2.70147848]
[1747939817773,0.01990382,111700.0,111690.0,2.82147848]
[1747939818192,0.0378082,111700.0,111690.0,2.83571037]
[1747939818393,0.02685589,111700.0,111690.0,2.83471037]
[1747939818605,0.02685597,111700.0,111690.0,2.83771037]
[1747939819009,0.03580836,111700.0,111690.0,2.83771037]
[1747939819182,0.02685597,111700.0,111690.0,2.83771037]
[1747939819382,0.01790382,111700.0,111690.0,2.83771037]
[1747939819792,0.01790382,111700.0,111690.0,2.82447848]
[1747939819793,0.04576043,111700.0,111690.0,2.82447848]
[1747939820410,0.21586018,111700.0,111690.0,2.82889474]
[1747939820605,0.20690811,111700.0,111690.0,2.82889474]
[1747939820806,0.18900357,111700.0,111690.0,2.60172146]
[1747939821010,0.18900357,111700.0,111690.0,2.56942146]
[1747939821416,0.18900357,111700.0,111690.0,2.54257546]
[1747939822381,0.18900357,111700.0,111690.0,2.55152881]
[1747939822555,0.19795588,111700.0,111690.0,2.76623312]
[1747939822768,0.01890438,111700.0,111690.0,2.79643312]
[1747939822979,0.00895022,111720.0,111710.0,0.5458887]
[1747939823183,0.214872,111720.0,111710.0,6.22891808]
[1747939823387,0.19697132,111720.0,111710.0,6.21996666]
[1747939823596,0.17906968,111720.0,111710.0,6.12088]
[1747939823985,0.17906968,111720.0,111710.0,3.54258]
[1747939824193,0.24096968,111720.0,111710.0,3.42758]
[1747939824393,0.24096968,111720.0,111710.0,2.1673]
[1747939824394,0.24296968,111720.0,111710.0,2.1673]
[1747939824601,0.24296968,111720.0,111710.0,1.29334]
[1747939825853,0.24296968,111720.0,111710.0,0.95334]
[1747939830243,0.24296968,111720.0,111710.0,1.29334]
[1747939830760,0.24296968,111720.0,111710.0,0.95548]
[1747939832497,0.24296968,111720.0,111710.0,6.00548]
[1747939833313,0.18106968,111720.0,111710.0,6.01441204]
[1747939834867,0.18106968,111720.0,111710.0,6.2023987]
[1747939835086,0.19897116,111720.0,111710.0,6.01441204]
[1747939835830,0.02890233,111720.0,111710.0,6.38628755]
[1747939836026,0.02890233,111720.0,111710.0,6.40046146]
[1747939836467,0.04680413,111720.0,111710.0,6.40046146]
[1747939836630,0.2258231,111720.0,111710.0,6.40046154]
[1747939836859,0.03785319,111720.0,111710.0,6.40941272]
[1747939837070,0.03785319,111720.0,111710.0,6.52941272]
[1747939837276,0.03785327,111720.0,111710.0,6.90670154]
[1747939837492,0.21687224,111720.0,111710.0,6.88881824]
[1747939837704,0.21687224,111720.0,111710.0,6.87464433]
[1747939837915,0.2028764,111720.0,111710.0,6.87464433]
[1747939838332,0.20587123,111720.0,111710.0,6.86569299]
[1747939838548,0.18796991,111720.0,111710.0,6.34756641]
[1747939838803,0.25346991,111720.0,111710.0,2.65178]
[1747939838988,0.25346991,111720.0,111710.0,2.80002]
[1747939841117,0.25346991,111720.0,111710.0,2.81418978]
[1747939841329,0.25346991,111720.0,111710.0,2.99322478]
[1747939842502,0.0923521,111720.0,111710.0,2.99322478]
[1747939842681,0.09235194,111720.0,111710.0,2.99322478]
[1747939843152,0.27137091,111720.0,111710.0,2.99322478]
[1747939844342,0.27137091,111720.0,111710.0,2.99318478]
[1747939845290,0.0322,111730.0,111720.0,0.51901897]
[1747939845490,0.04114902,111740.0,111730.0,0.17900295]
[1747939845712,0.26843391,111740.0,111730.0,6.18568028]
[1747939845919,0.26843391,111740.0,111730.0,6.18344295]
[1747939846586,0.25053611,111740.0,111730.0,6.19761273]
[1747939848089,0.25253611,111740.0,111730.0,6.19761273]
[1747939848718,0.25653611,111740.0,111730.0,6.19861273]
[1747939848957,0.25653611,111740.0,111730.0,6.01960978]
[1747939849177,0.25253611,111740.0,111730.0,6.01860978]
[1747939849587,0.25253611,111740.0,111730.0,6.19761273]
[1747939849895,0.25253611,111740.0,111730.0,6.01960978]
[1747939850044,0.25553611,111740.0,111730.0,6.01960978]
[1747939851041,0.25553611,111740.0,111730.0,6.01956978]
[1747939851241,0.25553611,111740.0,111730.0,1.67806978]
[1747939851470,0.25553611,111740.0,111730.0,1.47236978]
[1747939852425,0.25553611,111740.0,111730.0,1.20416978]
[1747939852637,0.25553611,111740.0,111730.0,1.47236978]
[1747939853246,0.25553611,111740.0,111730.0,1.43806978]
[1747939853480,0.25553611,111740.0,111730.0,1.15646978]
[1747939854092,0.25553611,111740.0,111730.0,1.08386978]
[1747939854618,0.25553611,111740.0,111730.0,0.70136978]
[1747939854827,0.25553611,111740.0,111730.0,0.96956978]
[1747939856141,0.25553611,111740.0,111730.0,0.9554]
[1747939857922,0.22333611,111740.0,111730.0,6.19765944]
[1747939858135,0.19293611,111740.0,111730.0,6.19765944]
[1747939858343,0.18398693,111740.0,111730.0,6.01865649]
[1747939858548,0.18398693,111740.0,111730.0,6.03282627]
[1747939858763,0.24828693,111740.0,111730.0,6.03282627]
[1747939858999,0.21698693,111740.0,111730.0,6.03282627]
[1747939859202,0.18398693,111740.0,111730.0,6.03282627]
[1747939859702,0.21708693,111740.0,111730.0,6.03282627]
[1747939859854,0.24758693,111740.0,111730.0,6.03282627]
[1747939860623,0.24758693,111740.0,111730.0,1.29672627]
[1747939860940,0.24758693,111740.0,111730.0,0.36842627]
[1747939861080,0.24758693,111740.0,111730.0,0.98110627]
[1747939865020,0.24758693,111740.0,111730.0,6.03110627]
[1747939865933,0.21448693,111740.0,111730.0,6.21010922]
[1747939866134,0.21448693,111740.0,111730.0,6.03110627]
[1747939866918,0.24528693,111740.0,111730.0,6.03110627]
[1747939867287,0.24528693,111740.0,111730.0,6.01693649]
[1747939867923,0.24528693,111740.0,111730.0,6.19163309]
[1747939868164,0.18398693,111740.0,111730.0,6.00368]
[1747939868393,0.18398693,111740.0,111730.0,6.29571942]
[1747939868587,0.18398693,111740.0,111730.0,6.33526924]
[1747939868588,0.19293611,111740.0,111730.0,6.33526924]
[1747939868932,0.21083431,111740.0,111730.0,6.33526932]
[1747939869143,0.21083431,111740.0,111730.0,6.34421914]
[1747939869351,0.21083431,111740.0,111730.0,6.37441906]
[1747939869555,0.21083431,111740.0,111730.0,6.36546932]
[1747939869753,0.20188537,111740.0,111730.0,6.2957195]
[1747939870096,0.20188537,111740.0,111730.0,6.30466956]
[1747939870500,0.19293619,111740.0,111730.0,6.2957195]
[1747939871484,0.19293619,111740.0,111730.0,6.4157195]
[1747939871683,0.19293619,111740.0,111730.0,6.41567071]
[1747939873375,0.19293619,111740.0,111730.0,6.41571071]
[1747939873555,0.19433619,111740.0,111730.0,6.41571071]
[1747939874814,0.18538693,111740.0,111730.0,6.41571071]
[1747939875979,0.24978693,111740.0,111730.0,5.98669677]
[1747939876162,0.24978693,111740.0,111730.0,1.35336544]
[1747939876364,0.33933249,111740.0,111730.0,0.73168]
[1747939876568,0.33933249,111740.0,111730.0,0.99984]
[1747939876800,0.33933249,111740.0,111730.0,1.01403424]
[1747939879440,0.33933249,111740.0,111730.0,0.99984]
[1747939880074,0.24978693,111740.0,111730.0,0.99984]
[1747939880282,0.24978693,111740.0,111730.0,3.87524]
[1747939880491,0.24978693,111740.0,111730.0,1.90334]
[1747939880701,0.24978693,111740.0,111730.0,1.22244]
[1747939881116,0.24978693,111740.0,111730.0,0.6098]
[1747939881323,0.24978693,111740.0,111730.0,1.22248]
[1747939883764,0.24978693,111740.0,111730.0,1.20118]
[1747939886111,0.24978693,111740.0,111730.0,0.99988]
[1747939887071,0.24978693,111740.0,111730.0,1.25998]
[1747939888425,0.24978693,111740.0,111730.0,1.59998]
[1747939890257,0.24978693,111740.0,111730.0,1.61417424]
[1747939890973,0.24978693,111740.0,111730.0,0.70727724]
[1747939891195,0.24978693,111740.0,111730.0,0.69819424]
[1747939891428,0.24978693,111740.0,111730.0,5.42589424]
[1747939891899,0.24978693,111740.0,111730.0,5.4117]
[1747939892121,0.24978693,111740.0,111730.0,5.6799]
[1747939892312,0.24978693,111740.0,111730.0,4.2894]
[1747939892457,0.24978693,111740.0,111730.0,4.046]
[1747939892813,0.24978693,111740.0,111730.0,2.1239]
[1747939895306,0.24978693,111740.0,111730.0,2.13453712]
[1747939896128,0.0153491,111740.0,111730.0,2.31354007]
[1747939896342,0.21223423,111740.0,111730.0,2.34674007]
[1747939896542,0.21223423,111740.0,111730.0,2.37023106]
[1747939896745,0.21223423,111740.0,111730.0,2.48128092]
[1747939897150,0.21223423,111740.0,111730.0,2.48483804]
[1747939897538,0.03324722,111740.0,111730.0,2.50273808]
[1747939897688,0.0064,111740.0,111730.0,2.55083748]
[1747939897879,0.02429764,111740.0,111730.0,2.55083756]
[1747939898074,0.03324674,111740.0,111730.0,2.55083764]
[1747939898328,0.03324674,111740.0,111730.0,2.93703764]
[1747939898539,0.02429764,111740.0,111730.0,3.0265832]
[1747939898741,0.03324674,111740.0,111730.0,3.0265832]
[1747939898947,0.04219608,111740.0,111730.0,3.00868364]
[1747939899412,0.22118301,111740.0,111730.0,2.96953374]
[1747939899610,0.042196,111740.0,111730.0,2.95423362]
[1747939900018,0.042196,111740.0,111730.0,2.9542337]
[1747939900706,0.05114534,111740.0,111730.0,2.9542337]
[1747939901338,0.23013227,111740.0,111730.0,2.9452838]
[1747939901575,0.23013227,111740.0,111730.0,2.9542337]
[1747939903375,0.23013227,111740.0,111730.0,2.93108956]
[1747939903532,0.23013227,111740.0,111730.0,2.94003946]
[1747939904888,0.042196,111740.0,111730.0,2.60003946]
[1747939905102,0.042196,111740.0,111730.0,2.60898928]
[1747939905303,0.042196,111740.0,111730.0,2.61793886]
[1747939905304,0.03324674,111740.0,111730.0,2.61793886]
[1747939905504,0.0153487,111740.0,111730.0,2.64943886]
[1747939905709,0.0064,111740.0,111730.0,2.67963886]
[1747939905917,0.0332465,111740.0,111730.0,2.67963886]
[1747939906265,0.02429748,111740.0,111730.0,2.67963886]
[1747939906478,0.0242974,111740.0,111730.0,2.67963886]
[1747939907087,0.04219536,111740.0,111730.0,2.69380251]
[1747939907282,0.04219536,111740.0,111730.0,2.66360251]
[1747939908188,0.05114462,111740.0,111730.0,2.65465285]
[1747939908380,0.21223415,111740.0,111730.0,2.58731293]
[1747939908605,0.26518529,111740.0,111730.0,1.57206357]
[1747939908784,0.26518529,111740.0,111730.0,2.18418357]
[1747939909399,0.26518529,111740.0,111730.0,2.19308319]
[1747939910623,0.26518529,111740.0,111730.0,2.17891962]
[1747939911530,0.26608529,111740.0,111730.0,2.17891962]
[1747939912210,0.26608529,111740.0,111730.0,2.18955109]
[1747939915779,0.26608529,111740.0,111730.0,2.19308319]
[1747939917294,0.26608529,111740.0,111730.0,2.19308319]
[1747939917515,0.26608529,111740.0,111730.0,2.18418357]
[1747939919004,0.26608529,111740.0,111730.0,2.1948122]
[1747939920630,0.26608529,111740.0,111730.0,2.18418357]
[1747939923214,0.26608529,111740.0,111730.0,2.19328353]
[1747939923809,0.26608529,111740.0,111730.0,2.19332353]
[1747939927115,0.26608529,111740.0,111730.0,2.19336353]
[1747939927934,0.26608529,111740.0,111730.0,2.52426357]
[1747939928157,0.26608529,111740.0,111730.0,2.52072966]
[1747939930604,0.26608529,111740.0,111730.0,2.25252966]
[1747939930835,0.26608529,111740.0,111730.0,2.52072966]
[1747939931303,0.26608529,111740.0,111730.0,2.53489323]
[1747939931790,0.26608529,111740.0,111730.0,2.53365323]
[1747939933286,0.26608529,111740.0,111730.0,2.51948966]
[1747939934210,0.26608529,111740.0,111730.0,2.36926112]
[1747939934453,0.26608529,111740.0,111730.0,3.58178966]
[1747939934626,0.26608529,111740.0,111730.0,3.44228966]
[1747939934861,0.26608529,111740.0,111730.0,3.28326]
[1747939935690,0.26608529,111740.0,111730.0,3.29216815]
[1747939936295,0.26608529,111740.0,111730.0,3.17366815]
[1747939936618,0.26613601,111740.0,111730.0,3.17366815]
[1747939938017,0.26613601,111740.0,111730.0,3.16476]
[1747939939171,0.26613601,111740.0,111730.0,3.13286]
[1747939939311,0.26613601,111740.0,111730.0,2.95926]
[1747939939508,0.26613601,111740.0,111730.0,2.89926]
[1747939940574,0.35568157,111740.0,111730.0,0.38624]
[1747939940769,0.35568157,111740.0,111730.0,0.9972]
[1747939943199,0.35568157,111740.0,111730.0,0.38624]
[1747939943431,0.35568157,111740.0,111730.0,0.9972]
[1747939947582,0.24926975,111720.0,111710.0,0.01416357]
[1747939947804,0.24926975,111720.0,111710.0,3.32082357]
[1747939948213,0.24926975,111720.0,111710.0,3.70702357]
[1747939948625,0.18796975,111720.0,111710.0,3.70702357]
[1747939948834,0.18796975,111720.0,111710.0,3.97522357]
[1747939949746,0.18896975,111720.0,111710.0,3.96206]
[1747939949962,0.25176975,111720.0,111710.0,3.95196]
[1747939950232,0.25176975,111720.0,111710.0,0.72996]
[1747939950456,0.34131531,111720.0,111710.0,0.72996]
[1747939950688,0.34131531,111720.0,111710.0,0.9982]
[1747939951179,0.34131531,111720.0,111710.0,0.72996]
[1747939951378,0.34131531,111720.0,111710.0,0.9982]
[1747939953041,0.34131531,111720.0,111710.0,0.72996]
[1747939953252,0.34131531,111720.0,111710.0,0.3872]
[1747939953458,0.96953879,111720.0,111710.0,0.99816]
[1747939953667,0.68131531,111720.0,111710.0,0.99816]
[1747939954107,0.68131531,111720.0,111710.0,0.99716]
[1747939954508,0.68131531,111720.0,111710.0,0.3862]
[1747939954711,0.68131531,111720.0,111710.0,0.99716]
[1747939955088,0.68031531,111720.0,111710.0,0.99716]
[1747939955484,0.68531531,111720.0,111710.0,0.99816]
[1747939956107,0.77483682,111720.0,111710.0,0.99816]
[1747939957280,0.68531531,111720.0,111710.0,0.99816]
[1747939965513,0.34531531,111720.0,111710.0,0.99816]
[1747939965952,0.68531531,111720.0,111710.0,0.99816]
[1747939971775,0.68531531,111720.0,111710.0,0.99824]
[1747939972075,0.34531531,111720.0,111710.0,0.99824]
[1747939976704,0.28251531,111720.0,111710.0,0.99824]
[1747939977345,0.19296975,111720.0,111710.0,5.709695]
[1747939980127,0.19296975,111720.0,111710.0,2.13244]
[1747939980581,0.19296975,111720.0,111710.0,2.16254]
[1747939980755,0.19296975,111720.0,111710.0,2.17670357]
[1747939981108,0.19296975,111720.0,111710.0,1.56566357]
[1747939981527,0.19296975,111720.0,111710.0,2.17666357]
[1747939981886,0.19296975,111720.0,111710.0,2.01829076]
[1747939982086,0.19296975,111720.0,111710.0,5.551183]
[1747939982618,0.19296975,111720.0,111710.0,1.0332]
[1747939982817,0.25536975,111720.0,111710.0,0.99728]
[1747939985031,0.25536975,111720.0,111710.0,0.729]
[1747939985472,0.25536975,111720.0,111710.0,0.99728]
[1747939986410,0.25536975,111720.0,111710.0,0.99724]
[1747939988225,0.25536975,111720.0,111710.0,0.38628]
[1747939988406,0.25536975,111720.0,111710.0,0.9972]
[1747939995841,0.22356975,111720.0,111710.0,0.9972]
[1747939997343,0.25376975,111720.0,111710.0,0.9972]
[1747939998148,0.38659258,111720.0,111710.0,0.729]
[1747939998345,0.63153879,111720.0,111710.0,0.729]
[1747939998728,0.63153879,111720.0,111710.0,0.38628]
[1747939998945,0.63153879,111720.0,111710.0,0.99724]
[1747939999151,0.97153879,111720.0,111710.0,0.38628]
[1747939999361,0.97153879,111720.0,111710.0,0.99724]
[1747939999582,0.68331531,111720.0,111710.0,0.99724]
[1747939999796,0.97153879,111720.0,111710.0,0.99724]
[1747940000005,0.96953879,111720.0,111710.0,0.99724]
[1747940000214,0.26115556,111700.0,111690.0,4e-05]
[1747940000423,0.26115556,111700.0,111690.0,0.611]
[1747940000424,0.6389246,111700.0,111690.0,0.611]
[1747940001415,0.6389246,111700.0,111690.0,0.61105071]
[1747940001844,0.9809246,111700.0,111690.0,0.34381071]
[1747940002050,1.07044611,111700.0,111690.0,0.61209071]
[1747940002312,1.08498696,111700.0,111690.0,0.61209071]
[1747940002440,1.08498696,111700.0,111690.0,0.61309071]
[1747940003151,1.08498696,111700.0,111690.0,0.34381071]
[1747940003377,0.0642,111670.0,111660.0,0.34272]
[1747940003574,0.6554262,111670.0,111660.0,0.34272]
[1747940003779,0.63002296,111670.0,111660.0,0.61104]
[1747940004781,0.34179948,111670.0,111660.0,0.61104]
[1747940004990,0.34279948,111670.0,111660.0,0.61104]
[1747940005838,0.34279948,111670.0,111660.0,0.61204]
[1747940006626,0.34279948,111670.0,111660.0,0.61208]
[1747940007065,0.34279948,111670.0,111660.0,0.61108]
[1747940007332,0.19709687,111620.0,111610.0,0.48809772]
[1747940007521,0.19709687,111620.0,111610.0,5.54705749]
[1747940007757,0.19709687,111620.0,111610.0,5.35890231]
[1747940007947,0.19709687,111620.0,111610.0,5.65809772]
[1747940008149,0.18813815,111620.0,111610.0,5.65809772]
[1747940008360,0.18813815,111620.0,111610.0,6.48551174]
[1747940008569,0.18813815,111620.0,111610.0,6.49251174]
[1747940008570,0.18913815,111620.0,111610.0,6.49251174]
[1747940008866,0.19013815,111620.0,111610.0,6.37301954]
[1747940009288,0.19013815,111620.0,111610.0,6.5667558]
[1747940009929,0.19909671,111620.0,111610.0,6.67422065]
[1747940010128,0.20805559,111620.0,111610.0,6.67422065]
[1747940010262,0.20805559,111620.0,111610.0,6.66526113]
[1747940010479,0.01095832,111620.0,111610.0,6.69213938]
[1747940010681,0.01095832,111620.0,111610.0,6.67633946]
[1747940010903,0.01991688,111620.0,111610.0,6.68529866]
[1747940011084,0.002,111620.0,111610.0,6.68529866]
[1747940011507,0.01791536,111630.0,111620.0,0.22059612]
[1747940011711,0.21497573,111640.0,111630.0,0.21442015]
[1747940011969,0.20601885,111640.0,111630.0,5.51490415]
[1747940012270,0.19706173,111640.0,111630.0,5.33574085]
[1747940012393,0.19706173,111640.0,111630.0,5.51490415]
[1747940012599,0.19706173,111640.0,111630.0,5.56490415]